fUST/lending_fUST_20251022
["ID","MTS","AMOUNT","RATE_DAILY","PERIOD"]
[392021808,1761106239421,-526.382377,0.00027273,2]
[392021809,1761106239431,-281.036995,0.00027273,2]
[392021810,1761106239441,-13353.48,0.000273,7]
[392021811,1761106239450,-921.0,0.00027476,2]
[392021812,1761106239459,-919.0,0.00027494,2]
[392021813,1761106239469,-2692.54,0.000275,7]
[392021814,1761106239478,-920.0,0.00027516,2]
[392021815,1761106239488,-919.0,0.0002753,2]
[392021817,1761106239498,-3500.0,0.0002756,5]
[392021818,1761106239507,-500.0,0.00027571,15]
[392021819,1761106239517,-151.0,0.000276,16]
[392021820,1761106239526,-919.0,0.00027619,2]
[392021821,1761106239535,-660.0,0.00027648,2]
[392021822,1761106239544,-889.04618599,0.00027658,2]
[392021823,1761106239553,-199.0,0.00027671,7]
[392021824,1761106239564,-1891.54840015,0.00027762,2]
[392021825,1761106239573,-160.0,0.00027787,3]
[392021826,1761106239583,-178.37247728,0.00027842,2]
[392021827,1761106239592,-526.382377,0.00027891,20]
[392021829,1761106239601,-281.036995,0.00027891,20]
[392021831,1761106239611,-983.0,0.00027942,2]
[392021832,1761106239620,-632.0,0.00027942,2]
[392021833,1761106239629,-2164.0,0.00027942,2]
[392021834,1761106239638,-4419.0,0.00027942,2]
[392021835,1761106239647,-199.0,0.00027945,8]
[392021836,1761106239656,-633.93670558,0.00027985,2]
[392021837,1761106239666,-1891.54840015,0.00028008,2]
[392021838,1761106239675,-150.0,0.00028031,2]
[392021839,1761106239684,-287.487,0.00028031,2]
[392021840,1761106239694,-187.147,0.00028031,2]
[392021841,1761106239703,-264.196,0.00028031,2]
[392021842,1761106239713,-294.753,0.00028031,2]
[392021843,1761106239723,-212.147,0.00028031,2]
[392021844,1761106239731,-4000.0,0.00028108,5]
[392021845,1761106239741,-500.0,0.00028119,15]
[392021846,1761106239751,-760.0,0.00028196,2]
[392021847,1761106239760,-587.0,0.00028212,2]
[392021848,1761106239770,-199.0,0.00028219,9]
[392021849,1761106239779,-1891.54840015,0.00028322,2]
[392021850,1761106239788,-2351.0,0.00028471,2]
[392021851,1761106239798,-199.0,0.00028493,10]
[392021852,1761106239807,-1891.54840015,0.00028514,2]
[392021853,1761106239816,-1578.88628513,0.00028596,2]
[392021854,1761106239825,-526.382377,0.0002863,28]
[392021855,1761106239835,-281.036995,0.0002863,28]
[392021856,1761106239844,-2016.77699195,0.00028656,5]
[392021857,1761106239853,-500.0,0.00028667,15]
[392021858,1761106239862,-364.661,0.00028673,20]
[392021859,1761106239871,-177.87051647,0.00028673,20]
[392021860,1761106239881,-860.0,0.00028744,2]
[392021861,1761106239891,-1500.0,0.00028767,15]
[392021863,1761106239900,-1500.0,0.00028767,15]
[392021865,1761106239909,-1500.0,0.00028767,15]
[392021867,1761106239918,-1564.79771143,0.00028767,15]
[392021869,1761106239927,-250.0,0.00028767,2]
[392021871,1761106239936,-250.0,0.00028767,2]
[392021872,1761106239945,-250.0,0.00028767,2]
[392021873,1761106239954,-250.0,0.00028767,2]
[392021874,1761106239964,-250.0,0.00028767,2]
[392021876,1761106239973,-250.0,0.00028767,2]
[392021877,1761106239982,-250.0,0.00028767,2]
[392021879,1761106239991,-250.0,0.00028767,2]
[392021880,1761106240001,-250.0,0.00028767,2]
[392021882,1761106240013,-199.0,0.00028767,11]
[392021884,1761106240022,-526.382377,0.00028881,20]
[392021886,1761106240032,-281.036995,0.00028881,20]
[392021887,1761106240043,-3540.33702813,0.00028932,2]
[392021888,1761106240052,-700.27891896,0.00028985,2]
[392021889,1761106240062,-1891.54840015,0.00028996,2]
[392021890,1761106240072,-199.0,0.00029041,12]
[392021891,1761106240085,-500.0,0.00029048,7]
[392021892,1761106240095,-1891.54840015,0.00029096,2]
[392021893,1761106240104,-500.0,0.00029215,15]
[392021894,1761106240114,-960.0,0.00029292,2]
[392021895,1761106240134,-13353.48,0.000293,7]
[392021896,1761106240148,-199.0,0.00029315,13]
[392021897,1761106240156,-1891.54840015,0.00029318,2]
[392021898,1761106240166,-160.0,0.00029344,4]
[392021899,1761106240175,-889.04618599,0.00029395,2]
[392021900,1761106240184,-526.382377,0.00029503,2]
[392021901,1761106240195,-281.036995,0.00029503,2]
[392021902,1761106240204,-500.0,0.00029513,7]
[392021903,1761106240213,-199.0,0.00029589,14]
[392021904,1761106240223,-2692.54,0.000297,7]
[392021905,1761106240232,-500.0,0.00029763,15]
[392021906,1761106240241,-1891.54840015,0.00029807,2]
[392021907,1761106240250,-1060.0,0.0002984,2]
[392021908,1761106240259,-199.0,0.00029863,15]
[392021909,1761106240268,-526.382377,0.00029872,20]
[392021910,1761106240277,-281.036995,0.00029872,20]
[392021911,1761106240287,-250.0,0.00029905,2]
[392021912,1761106240296,-151.0,0.00029958,30]
[392021913,1761106240305,-864.0,0.00029968,30]
[392021914,1761106240314,-1891.54840015,0.00029968,2]
[392021915,1761106240323,-766.62113233,0.00029985,2]
[392021916,1761106240332,-169.8555,0.0003,2]
[392021917,1761106240341,-162.615,0.0003,2]
[392021918,1761106240351,-2847.75,0.0003,2]
[392021919,1761106240360,-300.0,0.000301,11]
[392021920,1761106240369,-300.0,0.000301,11]
[392021921,1761106240378,-300.0,0.000301,11]
[392021922,1761106240387,-300.0,0.000301,11]
[392021923,1761106240396,-300.0,0.000301,11]
[392021924,1761106240405,-300.0,0.000301,11]
[392021925,1761106240414,-300.0,0.000301,11]
[392021926,1761106240423,-300.0,0.000301,11]
[392021927,1761106240433,-300.0,0.000301,11]
[392021928,1761106240442,-300.0,0.000301,11]
[392021929,1761106240451,-300.0,0.000301,11]
[392021930,1761106240460,-300.0,0.000301,11]
[392021931,1761106240469,-300.0,0.000301,11]
[392021932,1761106240479,-300.0,0.000301,11]
[392021933,1761106240488,-300.0,0.000301,11]
[392021934,1761106240497,-300.0,0.000301,11]
[392021935,1761106240506,-200.0,0.000301,11]
[392021936,1761106240515,-202.54843338,0.00030126,2]
[392021937,1761106240525,-500.0,0.00030136,7]
[392021938,1761106240534,-460.0,0.00030136,7]
[392021939,1761106240543,-183.29365214,0.00030136,7]
[392021940,1761106240553,-500.0,0.00030136,2]
[392021941,1761106240562,-226.24860861,0.00030136,7]
[392021942,1761106240572,-375.71813837,0.00030136,7]
[392021943,1761106240581,-264.60020294,0.00030136,7]
[392021944,1761106240590,-580.53653119,0.00030136,7]
[392021945,1761106240599,-500.0,0.00030136,7]
[392021946,1761106240609,-216.010652,0.00030136,7]
[392021947,1761106240618,-637.01184734,0.00030136,7]
[392021948,1761106240627,-487.91906228,0.00030136,7]
[392021949,1761106240636,-1815.56,0.00030136,7]
[392021950,1761106240646,-389.55112032,0.00030136,7]
[392021951,1761106240655,-291.75372923,0.00030136,7]
[392021952,1761106240664,-404.29224935,0.00030136,7]
[392021953,1761106240673,-277.60489427,0.00030136,7]
[392021954,1761106240683,-500.0,0.00030136,7]
[392021955,1761106240691,-398.28436685,0.00030136,7]
[392021956,1761106240700,-336.68656245,0.00030136,7]
[392021957,1761106240710,-204.22238251,0.00030136,7]
[392021958,1761106240719,-500.0,0.00030136,7]
[392021959,1761106240728,-313.64460681,0.00030136,7]
[392021960,1761106240737,-209.67638246,0.00030136,7]
[392021961,1761106240746,-402.64096062,0.00030136,7]
[392021962,1761106240756,-299.27091136,0.00030136,7]
[392021963,1761106240765,-334.79924119,0.00030136,7]
[392021964,1761106240774,-511.12356219,0.00030136,7]
[392021965,1761106240784,-500.0,0.00030136,7]
[392021966,1761106240792,-500.0,0.00030136,7]
[392021967,1761106240801,-263.59067899,0.00030136,7]
[392021968,1761106240811,-154.07727595,0.00030136,7]
[392021969,1761106240820,-287.29279828,0.00030136,7]
[392021970,1761106240830,-189.00685833,0.00030136,7]
[392021971,1761106240839,-357.75164544,0.00030136,7]
[392021972,1761106240848,-424.64947043,0.00030136,7]
[392021973,1761106240857,-162.53702627,0.00030136,7]
[392021974,1761106240867,-647.95067007,0.00030136,7]
[392021975,1761106240879,-262.46704282,0.00030136,7]
[392021976,1761106240889,-175.28761425,0.00030136,7]
[392021977,1761106240899,-500.0,0.00030136,2]
[392021978,1761106240908,-194.42960717,0.00030136,7]
[392021979,1761106240917,-307.99473526,0.00030136,7]
[392021980,1761106240926,-483.16155275,0.00030136,7]
[392021981,1761106240935,-203.72529291,0.00030136,7]
[392021982,1761106240944,-563.564554,0.00030136,7]
[392021983,1761106240953,-416.32949053,0.00030136,7]
[392021984,1761106240962,-189.0705972,0.00030136,7]
[392021985,1761106240971,-327.87010895,0.00030136,7]
[392021986,1761106240980,-501.67016466,0.00030136,7]
[392021987,1761106240989,-228.31063172,0.00030136,7]
[392021988,1761106240998,-343.23324087,0.00030136,7]
[392021989,1761106241012,-488.81145778,0.00030136,7]
[392021990,1761106241021,-380.52774044,0.00030136,7]
[392021991,1761106241031,-372.42776992,0.00030136,7]
[392021992,1761106241041,-496.78538792,0.00030136,7]
[392021993,1761106241050,-344.8076518,0.00030136,7]
[392021994,1761106241061,-296.41562232,0.00030136,7]
[392021995,1761106241071,-228.42770342,0.00030136,7]
[392021996,1761106241080,-367.64494753,0.00030136,7]
[392021997,1761106241089,-238.83272752,0.00030136,7]
[392021998,1761106241099,-422.20912532,0.00030136,7]
[392021999,1761106241108,-292.02711664,0.00030136,7]
[392022000,1761106241117,-171.63672984,0.00030136,7]
[392022001,1761106241127,-196.82529899,0.00030136,7]
[392022002,1761106241136,-242.20811233,0.00030136,7]
[392022003,1761106241145,-457.19477797,0.00030136,7]
[392022004,1761106241154,-200.0,0.00030136,7]
[392022005,1761106241164,-322.91618899,0.00030136,7]
[392022006,1761106241173,-500.0,0.00030136,7]
[392022007,1761106241183,-205.41868019,0.00030136,7]
[392022008,1761106241192,-187.76706673,0.00030136,7]
[392022009,1761106241202,-425.23018006,0.00030136,7]
[392022010,1761106241212,-165.7571726,0.00030136,7]
[392022011,1761106241221,-195.40019124,0.00030136,7]
[392022012,1761106241230,-362.76359806,0.00030136,7]
[392022013,1761106241239,-386.76964962,0.00030136,7]
[392022014,1761106241248,-382.99734782,0.00030136,7]
[392022015,1761106241258,-296.63830845,0.00030136,7]
[392022016,1761106241267,-361.9815455,0.00030136,7]
[392022017,1761106241277,-1000.0,0.00030136,2]
[392022018,1761106241286,-191.95108613,0.00030136,7]
[392022019,1761106241296,-500.0,0.00030136,7]
[392022020,1761106241304,-253.865749,0.00030136,7]
[392022021,1761106241314,-349.41750686,0.00030136,7]
[392022022,1761106241323,-309.60701034,0.00030136,7]
[392022023,1761106241332,-222.15435582,0.00030136,7]
[392022024,1761106241341,-165.77753778,0.00030136,7]
[392022025,1761106241351,-228.85356341,0.00030136,7]
[392022026,1761106241360,-351.92241953,0.00030136,7]
[392022027,1761106241370,-419.36870839,0.00030136,7]
[392022028,1761106241380,-340.18308612,0.00030136,7]
[392022029,1761106241392,-426.38365562,0.00030136,7]
[392022030,1761106241401,-344.04213321,0.00030136,7]
[392022031,1761106241410,-397.04027071,0.00030136,7]
[392022032,1761106241419,-163.06299538,0.00030136,7]
[392022033,1761106241428,-411.71166528,0.00030136,7]
[392022034,1761106241437,-873.36,0.00030136,7]
[392022035,1761106241446,-500.0,0.00030136,7]
[392022036,1761106241455,-201.9189294,0.00030136,7]
[392022037,1761106241464,-510.19784801,0.00030136,7]
[392022038,1761106241474,-191.6044713,0.00030136,7]
[392022039,1761106241483,-360.20200319,0.00030136,7]
[392022040,1761106241493,-434.32562797,0.00030136,7]
[392022041,1761106241502,-357.58399041,0.00030136,7]
[392022042,1761106241511,-266.14660862,0.00030136,7]
[392022043,1761106241520,-500.0,0.00030136,7]
[392022044,1761106241529,-207.2156789,0.00030136,7]
[392022045,1761106241539,-398.66436583,0.00030136,7]
[392022046,1761106241548,-362.19474942,0.00030136,7]
[392022047,1761106241557,-333.24413904,0.00030136,7]
[392022048,1761106241567,-162.06073458,0.00030136,7]
[392022049,1761106241576,-327.20495866,0.00030136,7]
[392022050,1761106241585,-405.15904943,0.00030136,7]
[392022051,1761106241595,-176.13463274,0.00030136,7]
[392022052,1761106241604,-329.29971541,0.00030136,7]
[392022053,1761106241614,-157.36464837,0.00030136,7]
[392022054,1761106241624,-164.55359768,0.00030136,7]
[392022055,1761106241633,-500.0,0.00030136,6]
[392022056,1761106241643,-242.05492627,0.00030136,7]
[392022057,1761106241652,-500.0,0.00030136,7]
[392022058,1761106241662,-170.30839777,0.00030136,7]
[392022059,1761106241672,-599.10118725,0.00030136,7]
[392022060,1761106241682,-500.0,0.00030136,7]
[392022061,1761106241691,-438.172577,0.00030136,7]
[392022062,1761106241700,-162.57504482,0.00030136,7]
[392022063,1761106241709,-282.85812094,0.00030136,7]
[392022064,1761106241718,-435.58932894,0.00030136,7]
[392022065,1761106241727,-293.05659124,0.00030136,7]
[392022066,1761106241737,-426.4351762,0.00030136,7]
[392022067,1761106241746,-169.42139911,0.00030136,7]
[392022068,1761106241755,-350.53803323,0.00030136,7]
[392022069,1761106241765,-391.97531565,0.00030136,7]
[392022070,1761106241774,-3385.8,0.00030136,2]
[392022071,1761106241784,-500.0,0.00030136,7]
[392022072,1761106241793,-344.28543436,0.00030136,7]
[392022073,1761106241803,-394.23099781,0.00030136,7]
[392022074,1761106241813,-204.76256233,0.00030136,7]
[392022075,1761106241822,-413.59874406,0.00030136,7]
[392022076,1761106241832,-151.0,0.00030136,30]
[392022077,1761106241841,-450.04226646,0.00030136,7]
[392022078,1761106241851,-151.0,0.00030136,30]
[392022079,1761106241860,-370.15168552,0.00030136,7]
[392022080,1761106241869,-500.0,0.00030136,7]
[392022081,1761106241878,-310.89209667,0.00030136,7]
[392022082,1761106241888,-156.38528391,0.00030136,7]
[392022083,1761106241898,-798.61,0.00030136,7]
[392022084,1761106241907,-500.0,0.00030136,7]
[392022085,1761106241917,-326.35246607,0.00030136,7]
[392022086,1761106241926,-356.01494777,0.00030136,7]
[392022087,1761106241935,-343.85267406,0.00030136,7]
[392022088,1761106241944,-446.22710663,0.00030136,7]
[392022089,1761106241953,-500.0,0.00030136,7]
[392022090,1761106241963,-175.25191809,0.00030136,7]
[392022091,1761106241972,-578.66409647,0.00030136,7]
[392022092,1761106241981,-347.38797321,0.00030136,7]
[392022093,1761106241991,-500.0,0.00030136,7]
[392022094,1761106242003,-553.31947537,0.00030136,7]
[392022095,1761106242014,-199.52534277,0.00030136,7]
[392022096,1761106242024,-500.0,0.00030136,7]
[392022097,1761106242033,-500.0,0.00030136,7]
[392022098,1761106242044,-209.98297603,0.00030136,7]
[392022099,1761106242054,-197.8148428,0.00030136,7]
[392022100,1761106242064,-258.72145882,0.00030136,7]
[392022101,1761106242074,-286.71816532,0.00030136,7]
[392022102,1761106242086,-224.74968221,0.00030136,7]
[392022103,1761106242095,-302.63570934,0.00030136,7]
[392022104,1761106242105,-407.86393735,0.00030136,7]
[392022105,1761106242114,-339.5087257,0.00030136,7]
[392022106,1761106242123,-401.43468633,0.00030136,7]
[392022107,1761106242132,-414.60225012,0.00030136,7]
[392022108,1761106242142,-394.13726671,0.00030136,7]
[392022109,1761106242151,-500.0,0.00030136,7]
[392022110,1761106242160,-246.9595473,0.00030136,7]
[392022111,1761106242170,-285.8611888,0.00030136,7]
[392022112,1761106242179,-193.19471656,0.00030136,7]
[392022113,1761106242188,-168.08342146,0.00030136,7]
[392022114,1761106242197,-170.26874214,0.00030136,7]
[392022115,1761106242207,-418.23724513,0.00030136,7]
[392022116,1761106242216,-525.31729372,0.00030136,7]
[392022117,1761106242226,-220.96140396,0.00030136,7]
[392022121,1761106242341,-188.20051469,0.00030136,7]
[392022123,1761106242355,-270.84547537,0.00030136,7]
[392022124,1761106242365,-163.07001784,0.00030136,7]
[392022125,1761106242374,-484.81908506,0.00030136,7]
[392022126,1761106242383,-279.98327975,0.00030136,7]
[392022127,1761106242392,-310.31807726,0.00030136,7]
[392022128,1761106242401,-285.84973559,0.00030136,7]
[392022129,1761106242410,-422.00755294,0.00030136,7]
[392022130,1761106242419,-229.8743254,0.00030136,7]
[392022131,1761106242429,-193.94859614,0.00030136,7]
[392022132,1761106242439,-376.86376356,0.00030136,7]
[392022133,1761106242448,-381.85568789,0.00030136,7]
[392022134,1761106242457,-188.13134303,0.00030136,7]
[392022135,1761106242465,-164.2643105,0.00030136,7]
[392022136,1761106242475,-500.0,0.00030136,7]
[392022137,1761106242484,-263.92935556,0.00030136,7]
[392022139,1761106242493,-182.21645852,0.00030136,7]
[392022140,1761106242502,-161.19190456,0.00030136,7]
[392022142,1761106242511,-165.09232385,0.00030136,7]
[392022143,1761106242520,-443.7208532,0.00030136,7]
[392022144,1761106242529,-433.13454412,0.00030136,7]
[392022145,1761106242538,-264.2734302,0.00030136,7]
[392022146,1761106242547,-167.06908319,0.00030136,7]
[392022147,1761106242556,-208.35979215,0.00030136,7]
[392022148,1761106242565,-150.63750865,0.00030136,7]
[392022149,1761106242575,-355.85537143,0.00030136,7]
[392022150,1761106242584,-222.53999091,0.00030136,7]
[392022151,1761106242593,-375.42840152,0.00030136,7]
[392022152,1761106242602,-580.77596234,0.00030136,7]
[392022153,1761106242611,-310.56029153,0.00030136,7]
[392022154,1761106242620,-235.12868779,0.00030136,7]
[392022155,1761106242629,-698.92,0.00030136,7]
[392022156,1761106242638,-252.10695275,0.00030136,7]
[392022157,1761106242647,-305.6750953,0.00030136,7]
[392022158,1761106242656,-427.45011105,0.00030136,7]
[392022159,1761106242665,-255.73843306,0.00030136,7]
[392022160,1761106242675,-205.63467688,0.00030136,7]
[392022161,1761106242684,-495.90907792,0.00030136,7]
[392022162,1761106242693,-526.382377,0.00030136,7]
[392022163,1761106242702,-500.0,0.00030136,7]
[392022164,1761106242712,-345.70979898,0.00030136,7]
[392022165,1761106242721,-1719.71,0.00030136,7]
[392022166,1761106242730,-500.0,0.00030136,7]
[392022167,1761106242739,-500.0,0.00030136,7]
[392022168,1761106242748,-500.0,0.00030136,7]
[392022169,1761106242758,-374.38007452,0.00030136,7]
[392022170,1761106242767,-237.38378243,0.00030136,7]
[392022171,1761106242777,-270.20670006,0.00030136,7]
[392022172,1761106242786,-373.93350273,0.00030136,7]
[392022173,1761106242795,-192.48645907,0.00030136,7]
[392022174,1761106242804,-281.64495271,0.00030136,7]
[392022175,1761106242814,-177.83067305,0.00030136,7]
[392022176,1761106242824,-195.20001391,0.00030136,7]
[392022177,1761106242833,-261.15607341,0.00030136,7]
[392022178,1761106242842,-381.271218,0.00030136,7]
[392022179,1761106242851,-222.51023298,0.00030136,7]
[392022180,1761106242861,-500.0,0.00030136,7]
[392022181,1761106242870,-528.16277677,0.00030136,7]
[392022182,1761106242879,-204.53086713,0.00030136,7]
[392022183,1761106242888,-154.82739698,0.00030136,7]
[392022184,1761106242897,-353.4328264,0.00030136,7]
[392022185,1761106242906,-275.97635961,0.00030136,7]
[392022186,1761106242916,-443.34804789,0.00030136,7]
[392022187,1761106242925,-488.54664983,0.00030136,7]
[392022188,1761106242934,-500.0,0.00030136,7]
[392022189,1761106242944,-505.26522106,0.00030136,7]
[392022190,1761106242953,-476.64485801,0.00030136,7]
[392022191,1761106242962,-406.97293367,0.00030136,7]
[392022192,1761106242972,-281.036995,0.00030136,7]
[392022193,1761106242981,-471.04441665,0.00030136,7]
[392022194,1761106242991,-179.14732688,0.00030136,7]
[392022195,1761106243001,-383.4321509,0.00030136,7]
[392022196,1761106243014,-391.5357291,0.00030136,7]
[392022197,1761106243024,-228.03333693,0.00030136,7]
[392022198,1761106243033,-152.86857846,0.00030136,7]
[392022199,1761106243043,-387.37913801,0.00030136,7]
[392022200,1761106243053,-343.20101635,0.00030136,7]
[392022201,1761106243064,-200.19375026,0.00030136,7]
[392022202,1761106243073,-500.0,0.00030136,7]
[392022203,1761106243084,-500.0,0.00030136,7]
[392022204,1761106243093,-204.85090527,0.00030136,7]
[392022205,1761106243103,-281.40735665,0.00030136,7]
[392022206,1761106243112,-383.9352096,0.00030136,7]
[392022207,1761106243122,-218.47679941,0.00030136,7]
[392022208,1761106243131,-525.19208295,0.00030136,7]
[392022209,1761106243140,-253.0730299,0.00030136,7]
[392022210,1761106243150,-360.92931251,0.00030136,7]
[392022211,1761106243159,-396.27058211,0.00030136,7]
[392022212,1761106243168,-506.83352095,0.00030136,7]
[392022213,1761106243178,-169.12964423,0.00030136,7]
[392022214,1761106243187,-500.0,0.00030136,7]
[392022215,1761106243197,-282.39492785,0.00030136,7]
[392022216,1761106243207,-381.48414187,0.00030136,7]
[392022217,1761106243217,-354.74688904,0.00030136,7]
[392022218,1761106243226,-630.65447753,0.00030136,7]
[392022219,1761106243236,-188.90382904,0.00030136,7]
[392022220,1761106243245,-500.0,0.00030136,2]
[392022221,1761106243255,-401.65619612,0.00030136,7]
[392022222,1761106243264,-389.90767542,0.00030136,7]
[392022223,1761106243273,-420.94893177,0.00030136,7]
[392022224,1761106243282,-456.58174949,0.00030136,7]
[392022225,1761106243291,-331.74504478,0.00030136,7]
[392022226,1761106243301,-267.48724999,0.00030136,7]
[392022227,1761106243310,-500.0,0.00030136,7]
[392022228,1761106243319,-233.39601973,0.00030136,7]
[392022229,1761106243329,-500.0,0.00030136,7]
[392022230,1761106243338,-500.0,0.00030136,7]
[392022231,1761106243347,-263.51592051,0.00030136,7]
[392022232,1761106243356,-500.0,0.00030136,7]
[392022233,1761106243367,-500.0,0.00030136,7]
[392022234,1761106243376,-500.0,0.00030136,7]
[392022235,1761106243385,-460.62514168,0.00030136,7]
[392022236,1761106243394,-383.41896121,0.00030136,7]
[392022237,1761106243403,-198.23182065,0.00030136,7]
[392022238,1761106243411,-465.2051283,0.00030136,7]
[392022239,1761106243420,-346.47400831,0.00030136,7]
[392022240,1761106243429,-468.15890753,0.00030136,7]
[392022241,1761106243439,-500.0,0.00030136,7]
[392022242,1761106243448,-280.51710492,0.00030136,7]
[392022243,1761106243457,-315.29830206,0.00030136,7]
[392022244,1761106243466,-242.26528224,0.00030136,7]
[392022245,1761106243475,-463.53758527,0.00030136,7]
[392022246,1761106243484,-500.0,0.00030136,7]
[392022247,1761106243493,-380.85331625,0.00030136,7]
[392022248,1761106243502,-413.09631767,0.00030136,7]
[392022249,1761106243512,-279.51456703,0.00030136,7]
[392022250,1761106243521,-163.12531131,0.00030136,7]
[392022251,1761106243530,-217.49797586,0.00030136,7]
[392022252,1761106243539,-374.46127483,0.00030136,7]
[392022253,1761106243548,-284.04034375,0.00030136,7]
[392022254,1761106243557,-383.26188039,0.00030136,7]
[392022255,1761106243566,-186.01509429,0.00030136,7]
[392022256,1761106243575,-417.45835583,0.00030136,7]
[392022257,1761106243584,-491.7243919,0.00030136,7]
[392022258,1761106243593,-500.0,0.00030136,7]
[392022259,1761106243602,-501.98302975,0.00030136,7]
[392022260,1761106243611,-361.08894123,0.00030136,7]
[392022261,1761106243620,-305.65718132,0.00030136,7]
[392022262,1761106243629,-500.0,0.00030136,7]
[392022263,1761106243638,-308.25512341,0.00030136,7]
[392022264,1761106243647,-328.77167624,0.00030136,7]
[392022265,1761106243656,-241.69439862,0.00030136,7]
[392022266,1761106243665,-491.14265081,0.00030136,7]
[392022267,1761106243674,-163.76180905,0.00030136,7]
[392022268,1761106243684,-322.29987435,0.00030136,7]
[392022269,1761106243693,-378.36753295,0.00030136,7]
[392022270,1761106243702,-392.15086227,0.00030136,7]
[392022271,1761106243711,-517.08746334,0.00030136,7]
[392022272,1761106243720,-397.63327559,0.00030136,7]
[392022273,1761106243729,-2907.85,0.00030136,2]
[392022274,1761106243738,-378.22950591,0.00030136,7]
[392022275,1761106243747,-385.92509597,0.00030136,7]
[392022276,1761106243756,-283.42079311,0.00030136,7]
[392022277,1761106243765,-480.39252546,0.00030136,7]
[392022278,1761106243775,-339.12217062,0.00030136,7]
[392022279,1761106243784,-246.29275562,0.00030136,7]
[392022280,1761106243793,-247.31846778,0.00030136,7]
[392022281,1761106243802,-184.86412945,0.00030136,7]
[392022282,1761106243812,-397.51300505,0.00030136,7]
[392022283,1761106243821,-386.5340649,0.00030136,7]
[392022284,1761106243830,-221.92678929,0.00030136,7]
[392022285,1761106243839,-489.63841137,0.00030136,7]
[392022286,1761106243848,-581.70552696,0.00030136,7]
[392022287,1761106243857,-183.70728979,0.00030136,7]
[392022288,1761106243867,-414.98691223,0.00030136,7]
[392022289,1761106243876,-151.0,0.00030136,2]
[392022290,1761106243888,-160.39539873,0.00030136,7]
[392022291,1761106243897,-222.06809218,0.00030136,7]
[392022292,1761106243906,-173.48982923,0.00030136,7]
[392022293,1761106243915,-281.42143024,0.00030136,7]
[392022294,1761106243924,-639.56454551,0.00030136,7]
[392022295,1761106243933,-500.0,0.00030136,7]
[392022296,1761106243943,-376.87004562,0.00030136,7]
[392022297,1761106243952,-350.92719017,0.00030136,7]
[392022298,1761106243961,-239.1904693,0.00030136,7]
[392022299,1761106243970,-486.23647,0.00030136,7]
[392022300,1761106243979,-322.89402484,0.00030136,7]
[392022301,1761106243988,-572.41,0.00030136,7]
[392022302,1761106243998,-446.57545684,0.00030136,7]
[392022303,1761106244011,-410.249458,0.00030136,7]
[392022304,1761106244021,-415.57821034,0.00030136,7]
[392022305,1761106244030,-173.08691186,0.00030136,7]
[392022306,1761106244040,-268.89927894,0.00030136,7]
[392022307,1761106244049,-199.0,0.00030136,16]
[392022308,1761106244059,-500.0,0.00030136,7]
[392022309,1761106244068,-239.81925795,0.00030136,7]
[392022310,1761106244077,-232.37463565,0.00030136,7]
[392022311,1761106244087,-500.0,0.00030136,7]
[392022312,1761106244097,-500.0,0.00030136,7]
[392022313,1761106244106,-501.21275149,0.00030136,7]
[392022314,1761106244115,-413.55938269,0.00030136,7]
[392022315,1761106244125,-218.07656946,0.00030136,7]
[392022316,1761106244135,-253.27809085,0.00030136,7]
[392022317,1761106244144,-422.00151591,0.00030136,7]
[392022318,1761106244154,-172.59171225,0.00030136,7]
[392022319,1761106244164,-411.27803186,0.00030136,7]
[392022320,1761106244174,-186.32057085,0.00030136,7]
[392022321,1761106244183,-335.06313695,0.00030136,7]
[392022322,1761106244193,-238.27158002,0.00030136,7]
[392022323,1761106244202,-623.88337196,0.00030136,7]
[392022324,1761106244212,-612.00323449,0.00030136,7]
[392022325,1761106244222,-432.14089483,0.00030136,7]
[392022326,1761106244232,-312.06547316,0.00030136,7]